[Event "9. Korbacher Open 2017"]
[Site "Korbach"]
[Date "2017.10.22"]
[Round "6"]
[White "Duzy, Stefan"]
[Black "Andersen, Lars Christoff"]
[Result "0-1"]
[ECO "C11"]
[WhiteElo "1935"]
[BlackElo "2107"]
[Annotator "NA"]
[PlyCount "44"]
[EventDate "2017.??.??"]
[EventType "swiss"]
[EventCountry "GER"]
[SourceTitle "playchess.com"]
[Source "ChessBase"]
[SourceQuality "1"]
[TimeControl "40/5400+30:1800+30"]

1. e4 {[%emt 0:00:00]} e6 {[%emt 0:00:12]} 2. d4 {[%emt 0:00:00]} d5 {[%emt 0:00:10]} 3. Nc3 {[%emt 0:00:00]} Nf6 {[%emt 0:00:10]} 4. e5 {[%emt 0:00:01]} Nfd7 {[%emt 0:00:09]} 5. f4 {[%emt 0:00:06]} c5 {[%emt 0:00:08]} 6. Nf3 {[%emt 0:00:10]} Nc6 {[%emt 0:00:29]} 7. Be3 {[%emt 0:00:10]} Be7 {[%emt 0:00:14]} 8. dxc5 {[%emt 0:01:31] C11: French: Classical System: 4 e5 and 4 Bg5 dxe4} (8. Qd2 a6 9. a3 b5 10. Bd3 Bb7 11. O-O O-O 12. Kh1 f5 13. Qf2 Rc8 14. Rg1 b4 15. axb4 Nxb4 16. g4 g6 17. gxf5 Nxd3 18. cxd3 Rxf5 {0-1 (40) Kasparov,G (2812)-Caruana,F (2807) Saint Louis 2017}) 8... Nxc5 {[%emt 0:03:53]} 9. Qd2 {[%emt 0:05:42]} O-O {[%emt 0:07:55]} 10. O-O-O {[%emt 0:01:22]} a6 {[%emt 0:04:06]} 11. Qf2 {[%emt 0:02:02]} b6 {[%emt 0:03:13]} 12. f5 {[%emt 0:14:32] LiveBook: 4 Games} f6 $146 {[%emt 0:22:59]} ({Predecessor:} 12... Ra7 13. f6 gxf6 14. Bh6 Kh8 15. Bxf8 Qxf8 16. Nd4 Nxe5 17. Be2 {0-1 (35) Soumya,S (2370)-Goganov,A (2627) Riga 2016}) 13. Bc4 {[%emt 0:37:43]} Qe8 {[%emt 0:11:16]} 14. Nxd5 {[%emt 0:07:20]} exd5 {[%emt 0:00:48]} 15. Bxd5+ {[%emt 0:00:15]} Kh8 {[%emt 0:01:08]} 16. e6 {[%emt 0:03:47]} Bb7 {[%emt 0:01:22]} 17. Bf4 {[%emt 0:00:30]} Rd8 {[%emt 0:05:46]} 18. Bc7 $19 {[%emt 0:11:57]} (18. Kb1 $17 {was called for.}) 18... Rxd5 {[%emt 0:05:13]} 19. Rxd5 {[%emt 0:00:20]} Nb4 {[%emt 0:00:50]} 20. Bxb6 {[%emt 0:06:11]} Ne4 {[%emt 0:03:29]} 21. Qd4 {[%emt 0:01:11]} Bxd5 {[%emt 0:02:22]} 22. a3 {[%emt 0:00:26]} Qa4 {[%emt 0:03:44]} 0-1

[Event "9. Korbacher Open 2017"]
[Site "Korbach"]
[Date "2017.10.22"]
[Round "6"]
[White "Petras, Nils"]
[Black "Li, Zhuoling"]
[Result "1/2-1/2"]
[ECO "A05"]
[WhiteElo "1922"]
[BlackElo "2007"]
[Annotator "NA"]
[PlyCount "94"]
[EventDate "2017.??.??"]
[EventType "swiss"]
[EventCountry "GER"]
[SourceTitle "playchess.com"]
[Source "ChessBase"]
[SourceQuality "1"]
[TimeControl "40/5400+30:1800+30"]

1. Nf3 {[%emt 0:03:37]} Nf6 {[%emt 0:00:10]} 2. c4 {[%emt 0:00:07]} g6 {[%emt 0:00:07]} 3. Nc3 {[%emt 0:00:06]} d5 {[%emt 0:00:07]} 4. cxd5 {[%emt 0:01:07]} Nxd5 {[%emt 0:00:09]} 5. g3 {[%emt 0:00:09]} Bg7 {[%emt 0:00:21]} 6. Bg2 {[%emt 0:00:06]} O-O {[%emt 0:00:13]} 7. O-O {[%emt 0:00:05]} Nb6 {[%emt 0:02:49]} 8. b3 {[%emt 0:05:51]} Nc6 {[%emt 0:03:23]} 9. Bb2 {[%emt 0:01:29]} a5 {[%emt 0:02:49]} 10. d3 {[%emt 0:06:16]} Bf5 {[%emt 0:05:27]} 11. Qd2 {[%emt 0:08:29]} Qd7 {[%emt 0:04:09]} 12. Rac1 $11 {[%emt 0:03:52]} Bh3 {[%emt 0:15:56]} 13. Ne4 {[%emt 0:03:14]} Bxg2 {[%emt 0:01:56]} 14. Kxg2 {[%emt 0:00:42]} e5 {[%emt 0:00:46]} 15. Nc5 {[%emt 0:13:07]} Qc8 {[%emt 0:00:29]} 16. e4 {[%emt 0:03:02]} a4 {[%emt 0:06:04]} 17. Rc2 {[%emt 0:11:16]} axb3 {[%emt 0:07:34]} 18. axb3 {[%emt 0:00:11]} Nd7 {[%emt 0:01:56]} 19. Rfc1 {[%emt 0:04:55]} Nxc5 {[%emt 0:01:23]} 20. Rxc5 {[%emt 0:00:07]} Qe6 {[%emt 0:00:30]} 21. Qc3 {[%emt 0:06:06]} Ra2 {[%emt 0:03:52]} 22. b4 {[%emt 0:03:41]} Nd4 {[%emt 0:05:29]} 23. Nxd4 {[%emt 0:00:06]} exd4 {[%emt 0:00:05]} 24. Qc2 {[%emt 0:00:16]} c6 {[%emt 0:01:20]} 25. b5 {[%emt 0:00:43]} cxb5 {[%emt 0:05:26]} 26. Rxb5 {[%emt 0:00:28]} Bh6 {[%emt 0:01:23]} 27. Rb1 {[%emt 0:07:00]} Rc8 {[%emt 0:06:29]} 28. Qb3 {[%emt 0:00:07]} Qxb3 {[%emt 0:05:05]} 29. Rxb3 {[%emt 0:00:05]} Bg7 {[%emt 0:02:40]} 30. Rxb7 {[%emt 0:01:15]} h5 {[%emt 0:00:55]} 31. Ba1 {[%emt 0:05:43]} Rd2 {[%emt 0:04:51]} 32. Rb8 {[%emt 0:00:17]} Rxb8 {[%emt 0:01:03]} 33. Rxb8+ {[%emt 0:00:05]} Kh7 {[%emt 0:00:03]} 34. Rb3 {[%emt 0:00:24]} h4 {[%emt 0:05:30]} 35. gxh4 {[%emt 0:01:23]} Kh6 {[%emt 0:01:20]} 36. Bb2 {[%emt 0:01:12]} Rd1 {[%emt 0:00:12]} 37. Ba3 {[%emt 0:00:59]} Bf6 {[%emt 0:02:01]} 38. Bc5 {[%emt 0:02:05]} Rc1 {[%emt 0:01:14]} 39. Bb4 {[%emt 0:03:35]} Rc2 {[%emt 0:00:20]} 40. Bf8+ {[%emt 0:05:01]} Kh7 {[%emt 0:30:40]} 41. Rb7 {[%emt 0:08:46]} Kg8 {[%emt 0:00:00]} 42. Be7 {[%emt 0:01:52]} Bxe7 {[%emt 0:00:00]} 43. Rxe7 {[%emt 0:00:06]} Rd2 {[%emt 0:00:00]} 44. Rd7 {[%emt 0:01:40]} Rxd3 {[%emt 0:00:00]} 45. Kf1 {[%emt 0:00:09]} Kf8 {[%emt 0:00:00]} 46. Ke2 {[%emt 0:01:53]} Rh3 {[%emt 0:00:00]} 47. Rxd4 {[%emt 0:00:15]} Rxh4 {[%emt 0:00:00]} 1/2-1/2

[Event "9. Korbacher Open 2017"]
[Site "Korbach"]
[Date "2017.10.22"]
[Round "6"]
[White "Wuestehube, Harry"]
[Black "Vlaming, Jos"]
[Result "1/2-1/2"]
[ECO "C00"]
[WhiteElo "1906"]
[BlackElo "2136"]
[Annotator "NA"]
[PlyCount "72"]
[EventDate "2017.??.??"]
[EventType "swiss"]
[EventCountry "GER"]
[SourceTitle "playchess.com"]
[Source "ChessBase"]
[SourceQuality "1"]
[TimeControl "40/5400+30:1800+30"]

1. e4 {[%emt 0:00:00]} e6 {[%emt 0:00:01]} 2. d3 {[%emt 0:00:00]} d5 {[%emt 0:00:28]} 3. Nd2 {[%emt 0:00:00]} c5 {[%emt 0:00:04]} 4. Ngf3 {[%emt 0:00:04]} Nc6 {[%emt 0:00:02]} 5. g3 $1 {[%emt 0:00:11]} g6 {[%emt 0:00:36]} 6. Bg2 {[%emt 0:00:16]} Bg7 {[%emt 0:00:02]} 7. O-O {[%emt 0:00:19]} Nge7 {[%emt 0:00:01]} 8. Re1 {[%emt 0:02:26]} O-O {[%emt 0:00:05]} 9. c3 {[%emt 0:06:50]} b6 {[%emt 0:13:16]} 10. h4 {[%emt 0:01:57] LiveBook: 6 Partien} h6 {[%emt 0:09:40]} 11. Qe2 {[%emt 0:08:59]} Ba6 $11 {[%emt 0:05:10]} 12. exd5 {[%emt 0:03:59]} Qxd5 {[%emt 0:07:17]} 13. Nc4 {[%emt 0:06:56]} Bxc4 {[%emt 0:06:57]} 14. dxc4 {[%emt 0:01:10]} Qf5 {[%emt 0:00:31]} 15. Bf4 {[%emt 0:10:46]} Rad8 {[%emt 0:00:52]} 16. Rad1 {[%emt 0:01:14]} Rxd1 {[%emt 0:01:05]} 17. Rxd1 {[%emt 0:00:09]} e5 {[%emt 0:00:07]} 18. Bc1 {[%emt 0:01:42]} Qc8 {[%emt 0:01:14]} 19. Nh2 {[%emt 0:05:10]} Kh7 {[%emt 0:01:28]} 20. Qd3 {[%emt 0:10:52]} f5 {[%emt 0:08:05]} 21. Nf1 {[%emt 0:03:34]} e4 {[%emt 0:01:58]} 22. Qe2 {[%emt 0:05:20]} Ne5 {[%emt 0:09:07]} 23. Nh2 {[%emt 0:06:35]} Rd8 {[%emt 0:03:43]} 24. f3 {[%emt 0:07:46]} Rxd1+ {[%emt 0:00:38]} 25. Qxd1 {[%emt 0:00:10]} exf3 {[%emt 0:00:12]} 26. Nxf3 {[%emt 0:00:30]} Nxc4 {[%emt 0:04:46]} 27. Qe2 {[%emt 0:04:32]} Ne5 {[%emt 0:03:50]} 28. Nxe5 {[%emt 0:00:27]} Qe6 {[%emt 0:00:03]} 29. Bf4 {[%emt 0:05:30]} g5 {[%emt 0:00:02]} 30. hxg5 {[%emt 0:00:13]} Ng6 {[%emt 0:00:17]} 31. gxh6 {[%emt 0:01:22]} Bxe5 {[%emt 0:00:28]} 32. Bxe5 {[%emt 0:01:59]} Qxe5 {[%emt 0:00:13]} 33. Qxe5 {[%emt 0:01:05]} Nxe5 {[%emt 0:00:02]} 34. Bh3 {[%emt 0:00:13]} Kxh6 {[%emt 0:03:29]} 35. Bxf5 {[%emt 0:00:01]} Kg5 {[%emt 0:00:09]} 36. Bb1 {[%emt 0:01:00]} Nc4 {[%emt 0:03:38]} 1/2-1/2

[Event "9. Korbacher Open 2017"]
[Site "Korbach"]
[Date "2017.10.22"]
[Round "6"]
[White "Goetz, Jan"]
[Black "Schmidt, Matthias"]
[Result "1/2-1/2"]
[ECO "D70"]
[WhiteElo "1890"]
[BlackElo "2031"]
[Annotator "NA"]
[PlyCount "73"]
[EventDate "2017.??.??"]
[EventType "swiss"]
[EventCountry "GER"]
[SourceTitle "playchess.com"]
[Source "ChessBase"]
[SourceQuality "1"]
[TimeControl "40/5400+30:1800+30"]

1. d4 {[%emt 0:00:50]} Nf6 {[%emt 0:00:37]} 2. c4 {[%emt 0:00:02]} g6 {[%emt 0:00:09]} 3. f3 {[%emt 0:00:00]} d5 {[%emt 0:10:52]} 4. cxd5 {[%emt 0:02:56]} Nxd5 {[%emt 0:00:14]} 5. e4 {[%emt 0:00:01]} Nb6 {[%emt 0:00:54]} 6. Nc3 {[%emt 0:00:52]} Bg7 {[%emt 0:00:22]} 7. Be3 {[%emt 0:00:08]} Nc6 {[%emt 0:01:21]} 8. Bb5 {[%emt 0:02:46] D70: Grünfeld: Unusual White 3rd moves (met by ...d5)} O-O {[%emt 0:04:23]} 9. Nge2 {[%emt 0:00:18] LiveBook: 14 Games} Bd7 {[%emt 0:08:20]} 10. Qd2 $146 {[%emt 0:02:32]} ({Predecessor:} 10. O-O Na5 11. b3 Bxb5 12. Nxb5 Qd7 13. Nbc3 Rad8 14. Qd2 Nc6 15. Rad1 Qc8 {1-0 (38) Navara,D (2710)-Ftacnik,L (2544) Czechia 2013}) 10... Nb4 {[%emt 0:05:53]} 11. b3 {[%emt 0:10:34]} c6 {[%emt 0:02:40]} 12. Bc4 {[%emt 0:06:45]} e5 {[%emt 0:06:27]} 13. d5 {[%emt 0:02:52]} cxd5 {[%emt 0:03:02]} 14. Bxd5 {[%emt 0:00:47]} N6xd5 {[%emt 0:06:57]} 15. Nxd5 {[%emt 0:02:49]} Nxd5 {[%emt 0:00:47]} 16. Qxd5 {[%emt 0:00:02]} Bc6 {[%emt 0:00:54]} 17. Qxd8 {[%emt 0:00:06]} Rfxd8 {[%emt 0:00:15]} 18. Rd1 {[%emt 0:08:10]} Rxd1+ {[%emt 0:14:56]} 19. Kxd1 {[%emt 0:07:43]} Bf8 {[%emt 0:03:24]} 20. Nc3 {[%emt 0:05:49]} Bb4 {[%emt 0:02:26]} 21. Bd2 {[%emt 0:01:06]} Rd8 {[%emt 0:03:15]} 22. Kc2 {[%emt 0:00:02]} f6 {[%emt 0:01:27]} 23. Nb1 $15 {[%emt 0:03:56]} Be7 {[%emt 0:00:53]} 24. a4 {[%emt 0:06:42]} a6 {[%emt 0:02:25]} 25. Ba5 {[%emt 0:06:25]} Rd7 {[%emt 0:01:25]} 26. Bb6 {[%emt 0:04:14]} Bb4 {[%emt 0:01:35]} 27. Rd1 {[%emt 0:00:26]} Rxd1 {[%emt 0:01:32]} 28. Kxd1 {[%emt 0:00:01]} f5 {[%emt 0:00:43]} 29. exf5 {[%emt 0:02:28]} gxf5 {[%emt 0:00:09]} 30. Nd2 {[%emt 0:02:20]} Kf7 {[%emt 0:05:27]} 31. Nc4 {[%emt 0:06:49]} Ke6 {[%emt 0:00:18]} 32. Ke2 {[%emt 0:00:53]} e4 {[%emt 0:01:31]} 33. f4 {[%emt 0:01:03]} Bd5 {[%emt 0:02:05]} 34. Ke3 {[%emt 0:02:15]} Bc3 {[%emt 0:02:40]} 35. Ke2 {[%emt 0:02:33]} Bb4 {[%emt 0:02:49]} 36. Ke3 {[%emt 0:00:01]} Bc3 {[%emt 0:00:25]} 37. Ke2 {Ke5 Ke1+} 1/2-1/2

[Event "9. Korbacher Open 2017"]
[Site "Korbach"]
[Date "2017.10.22"]
[Round "6"]
[White "Kirchner, Markus"]
[Black "Meyer, Marcel"]
[Result "1/2-1/2"]
[ECO "B14"]
[WhiteElo "1884"]
[BlackElo "1740"]
[Annotator "NA"]
[PlyCount "71"]
[EventDate "2017.??.??"]
[EventType "swiss"]
[EventCountry "GER"]
[SourceTitle "playchess.com"]
[Source "ChessBase"]
[SourceQuality "1"]
[TimeControl "40/5400+30:1800+30"]

1. e4 {[%emt 0:00:00]} c6 {[%emt 0:00:14]} 2. d4 {[%emt 0:01:42]} d5 {[%emt 0:00:10]} 3. exd5 {[%emt 0:00:21]} cxd5 {[%emt 0:00:08]} 4. c4 {[%emt 0:00:05]} Nf6 {[%emt 0:00:13]} 5. Nc3 {[%emt 0:00:08]} e6 {[%emt 0:00:10]} 6. Bg5 {[%emt 0:00:59]} Bb4 {[%emt 0:02:07]} 7. Nf3 {[%emt 0:00:55]} Nc6 {[%emt 0:00:44]} 8. Bd3 {[%emt 0:00:48]} O-O {[%emt 0:01:54]} 9. O-O {[%emt 0:00:13]} dxc4 {[%emt 0:00:28]} 10. Bxc4 {[%emt 0:00:14]} Be7 {[%emt 0:00:20]} 11. Bf4 {[%emt 0:02:41]} a6 {[%emt 0:05:58]} 12. a3 {[%emt 0:00:44]} b5 {[%emt 0:00:37]} 13. Bb3 {[%emt 0:00:08]} Na5 {[%emt 0:07:13]} 14. Bc2 {[%emt 0:00:56]} Bb7 {[%emt 0:01:20]} 15. Ng5 {[%emt 0:04:59]} ({White should try} 15. Ne5 $15) 15... g6 {[%emt 0:07:43]} 16. Re1 {[%emt 0:06:53]} (16. Nge4 $142) 16... Nd5 {[%emt 0:01:29]} (16... Nh5 $17 17. Nh3 Nxf4 18. Nxf4 Bg5) 17. Nxd5 {[%emt 0:01:36]} Bxd5 $4 {[%emt 0:00:10] [#]} (17... Bxg5 $17 {stays on course.} 18. Bc7 Qxd5) 18. Qg4 $11 {[%emt 0:04:32]} ({Weiss kommt nicht vorbei an} 18. Nxh7 $1 $18 {[%mdl 512]} Re8 (18... Kxh7 19. Qh5+) 19. Qg4) 18... Rc8 {[%emt 0:04:20]} 19. Bd3 {[%emt 0:07:19]} Nc4 {[%emt 0:03:11]} 20. b3 {[%emt 0:08:47]} Nb6 {[%emt 0:03:44]} 21. Re3 {[%emt 0:09:47]} Bxg2 {[%emt 0:07:15]} 22. Nxh7 {[%emt 0:03:58]} Qxd4 {[%emt 0:03:49]} 23. Bxg6 {[%emt 0:06:43]} Qxa1+ {[%emt 0:02:29]} 24. Kxg2 {[%emt 0:01:30]} Qg7 {[%emt 0:11:07]} 25. Rg3 {[%emt 0:01:57]} fxg6 {[%emt 0:05:44]} 26. Qxe6+ {[%emt 0:00:47]} Qf7 {[%emt 0:06:43]} 27. Rxg6+ {[%emt 0:02:12]} Kxh7 {[%emt 0:01:40]} 28. Rh6+ {[%emt 0:00:17]} Kg8 {[%emt 0:01:15]} 29. Qg4+ {[%emt 0:01:16]} Qg7 {[%emt 0:00:54]} 30. Rg6 {[%emt 0:00:17]} Bf6 {[%emt 0:01:17]} 31. Bh6 {[%emt 0:05:07]} Qxg6 {[%emt 0:02:10]} 32. Qxg6+ {[%emt 0:00:08]} Kh8 {[%emt 0:00:01]} 33. Bxf8 {[%emt 0:00:31]} Rxf8 {[%emt 0:00:37]} 34. Qh6+ {[%emt 0:00:13]} Kg8 {[%emt 0:00:08]} 35. Qg6+ {[%emt 0:01:38]} Kh8 {[%emt 0:00:07]} 36. Qh6+ {[%emt 0:00:40]} 1/2-1/2

[Event "9. Korbacher Open 2017"]
[Site "Korbach"]
[Date "2017.10.22"]
[Round "6"]
[White "Timar-Geng, Zoltan"]
[Black "Sanati, Charlotte"]
[Result "1/2-1/2"]
[ECO "D00"]
[WhiteElo "1859"]
[BlackElo "2098"]
[Annotator "NA"]
[PlyCount "58"]
[EventDate "2017.??.??"]
[EventType "swiss"]
[EventCountry "GER"]
[SourceTitle "playchess.com"]
[Source "ChessBase"]
[SourceQuality "1"]
[TimeControl "40/5400+30:1800+30"]

1. d4 {[%emt 0:00:00]} d5 {[%emt 0:00:06]} 2. Bf4 {[%emt 0:00:00]} Nf6 {[%emt 0:00:13]} 3. e3 {[%emt 0:00:00]} c5 {[%emt 0:00:33]} 4. c3 {[%emt 0:00:00]} Nc6 {[%emt 0:00:13]} 5. Nd2 {[%emt 0:00:42]} Bf5 {[%emt 0:00:33]} 6. Ngf3 {[%emt 0:10:10]} e6 {[%emt 0:01:28]} 7. Nh4 {[%emt 0:00:20]} Bg6 {[%emt 0:00:39]} 8. Qb3 {[%emt 0:08:26]} Qc8 {[%emt 0:07:14]} 9. Nxg6 {[%emt 0:00:35]} hxg6 {[%emt 0:00:08]} 10. h3 {[%emt 0:01:16]} Be7 {[%emt 0:03:21]} 11. Be2 {[%emt 0:00:10] LiveBook: 3 Games} O-O {[%emt 0:01:09]} 12. O-O {[%emt 0:00:28]} Qd7 {[%emt 0:02:18]} 13. Nf3 {[%emt 0:02:35]} c4 {[%emt 0:01:47]} 14. Qc2 {[%emt 0:00:32]} b5 {[%emt 0:04:51]} 15. Ne5 {[%emt 0:00:20]} Nxe5 {[%emt 0:01:35]} 16. Bxe5 $11 {[%emt 0:02:17]} Nh7 {[%emt 0:09:53]} 17. e4 {[%emt 0:03:01]} Ng5 {[%emt 0:05:43]} 18. exd5 {[%emt 0:00:57]} exd5 {[%emt 0:00:12]} 19. Bg4 {[%emt 0:05:23]} Qc6 {[%emt 0:12:58]} 20. Rfe1 {[%emt 0:03:03]} Rae8 {[%emt 0:03:18]} 21. Bf4 {[%emt 0:00:51]} Ne4 {[%emt 0:01:26]} 22. Bf3 {[%emt 0:04:22]} Bg5 {[%emt 0:08:29]} 23. Bxe4 {[%emt 0:01:32]} Bxf4 {[%emt 0:00:18]} 24. Bf3 {[%emt 0:00:16]} Bc7 {[%emt 0:06:13]} 25. Kf1 {[%emt 0:03:08]} Qd6 {[%emt 0:01:40]} 26. g3 {[%emt 0:00:15]} Re6 {[%emt 0:07:43]} 27. Bg2 {[%emt 0:03:10]} Rfe8 {[%emt 0:02:11]} 28. Rxe6 {[%emt 0:01:09]} Qxe6 {[%emt 0:00:29]} 29. Qd2 {[%emt 0:00:09]} Qf5 {[%emt 0:07:37]} 1/2-1/2

[Event "9. Korbacher Open 2017"]
[Site "Korbach"]
[Date "2017.10.22"]
[Round "6"]
[White "Koerber, Thomas"]
[Black "Lehmann, Tim"]
[Result "1/2-1/2"]
[ECO "A48"]
[WhiteElo "1857"]
[BlackElo "1865"]
[Annotator "NA"]
[PlyCount "50"]
[EventDate "2017.??.??"]
[EventType "swiss"]
[EventCountry "GER"]
[SourceTitle "playchess.com"]
[Source "ChessBase"]
[SourceQuality "1"]
[TimeControl "40/5400+30:1800+30"]

1. Nf3 {[%emt 0:00:00]} Nf6 {[%emt 0:00:08]} 2. d4 {[%emt 0:00:05]} g6 {[%emt 0:00:07]} 3. c3 {[%emt 0:00:14]} Bg7 {[%emt 0:00:06]} 4. Bg5 {[%emt 0:00:31]} d6 {[%emt 0:00:11]} 5. Bxf6 {[%emt 0:01:31]} Bxf6 {[%emt 0:00:11]} 6. e4 {[%emt 0:00:04]} Nd7 {[%emt 0:02:35]} 7. Nbd2 {[%emt 0:00:49]} c5 {[%emt 0:02:22]} 8. Bb5 {[%emt 0:03:13]} O-O {[%emt 0:01:43]} 9. O-O {[%emt 0:00:43]} a6 {[%emt 0:02:03]} 10. Bc4 {[%emt 0:02:35]} b5 {[%emt 0:01:06]} 11. Be2 {[%emt 0:01:15]} Bb7 {[%emt 0:00:26]} 12. Re1 {[%emt 0:03:35]} Qb6 {[%emt 0:07:40]} 13. d5 {[%emt 0:03:42]} Rfe8 {[%emt 0:02:19]} 14. Rb1 {[%emt 0:00:41]} a5 $11 {[%emt 0:00:56]} ({Black should try} 14... c4 $17 15. b3 Bxc3 16. bxc4 b4) 15. a4 {[%emt 0:04:57]} b4 {[%emt 0:07:12]} 16. Bb5 {[%emt 0:00:45]} Qc7 {[%emt 0:01:29]} 17. cxb4 {[%emt 0:02:19]} axb4 {[%emt 0:01:00]} 18. Nc4 {[%emt 0:01:59]} e5 {[%emt 0:01:38]} 19. b3 {[%emt 0:01:14]} Red8 {[%emt 0:01:07]} 20. Rc1 {[%emt 0:02:10]} Ba6 {[%emt 0:00:30]} 21. Bc6 {[%emt 0:00:25]} Rab8 {[%emt 0:00:12]} 22. Ne3 {[%emt 0:00:13]} Bg7 {[%emt 0:00:46]} 23. Rc2 {[%emt 0:02:48]} Rf8 {[%emt 0:00:44]} 24. Ng5 {[%emt 0:05:02]} h6 {[%emt 0:00:12]} 25. Nh3 {[%emt 0:00:07]} Nf6 {[%emt 0:00:18]} 1/2-1/2

[Event "9. Korbacher Open 2017"]
[Site "Korbach"]
[Date "2017.10.22"]
[Round "6"]
[White "Forgach, Andreas"]
[Black "Rehbein, Ullrich"]
[Result "1/2-1/2"]
[ECO "B28"]
[WhiteElo "1851"]
[BlackElo "1778"]
[Annotator "NA"]
[PlyCount "52"]
[EventDate "2017.??.??"]
[EventType "swiss"]
[EventCountry "GER"]
[SourceTitle "playchess.com"]
[Source "ChessBase"]
[SourceQuality "1"]
[TimeControl "40/5400+30:1800+30"]

1. e4 {[%emt 0:00:00]} c5 {[%emt 0:08:58]} 2. Nf3 {[%emt 0:00:16]} a6 {[%emt 0:00:01]} 3. c4 {[%emt 0:00:50]} Nc6 {[%emt 0:00:09]} 4. d4 {[%emt 0:00:49]} cxd4 {[%emt 0:00:10]} 5. Nxd4 {[%emt 0:00:14]} g6 {[%emt 0:03:04]} 6. Nc3 {[%emt 0:16:14]} Bg7 {[%emt 0:03:04]} 7. Be3 {[%emt 0:05:27]} Nf6 $14 {[%emt 0:09:36] LiveBook: 3 Partien} 8. Be2 {[%emt 0:03:03]} Qc7 {[%emt 0:06:37]} 9. O-O {[%emt 0:02:24]} e6 {[%emt 0:04:50]} 10. Rc1 {[%emt 0:03:19]} O-O {[%emt 0:03:27]} 11. h3 {[%emt 0:05:31]} Qb8 {[%emt 0:02:45]} 12. b3 {[%emt 0:05:55]} d6 {[%emt 0:06:15]} 13. Qd2 {[%emt 0:10:32]} Re8 {[%emt 0:03:31]} 14. Rfd1 {[%emt 0:00:49]} d5 {[%emt 0:05:40]} 15. cxd5 {[%emt 0:10:04]} exd5 {[%emt 0:00:40]} 16. exd5 Ne7 {[%emt 0:05:15]} 17. Nf3 {[%emt 0:11:31]} Nf5 {[%emt 0:01:40]} 18. Bf4 {[%emt 0:04:14]} Qa7 {[%emt 0:01:08]} 19. g4 {[%emt 0:00:39]} Ne7 {[%emt 0:03:31]} 20. d6 {[%emt 0:01:40]} Nc6 {[%emt 0:02:52]} 21. Be3 {[%emt 0:02:28]} Qb8 {[%emt 0:02:53]} 22. Ng5 {[%emt 0:02:11]} Bd7 {[%emt 0:02:36]} 23. Nd5 {[%emt 0:03:13]} Nxd5 {[%emt 0:12:27]} 24. Qxd5 {[%emt 0:00:04]} Ne5 {[%emt 0:00:40]} 25. Rc7 {[%emt 0:05:21]} Bc6 26. Rxc6 bxc6 1/2-1/2

[Event "9. Korbacher Open 2017"]
[Site "Korbach"]
[Date "2017.10.22"]
[Round "6"]
[White "Basovskiy, Jana"]
[Black "Hildebrand, Georg"]
[Result "1-0"]
[ECO "B00"]
[WhiteElo "1825"]
[BlackElo "1477"]
[Annotator "NA"]
[PlyCount "91"]
[EventDate "2017.??.??"]
[EventType "swiss"]
[EventCountry "GER"]
[SourceTitle "playchess.com"]
[Source "ChessBase"]
[SourceQuality "1"]
[TimeControl "40/5400+30:1800+30"]

1. e4 {[%emt 0:00:00]} b6 {[%emt 0:00:37]} 2. d4 Bb7 {[%emt 0:00:15]} 3. Nc3 {[%emt 0:03:31]} e6 {[%emt 0:00:32]} 4. Bd3 {[%emt 0:08:28]} Be7 {[%emt 0:01:20]} 5. Nf3 {[%emt 0:01:04]} h6 {[%emt 0:03:27]} 6. O-O {[%emt 0:01:30]} Bg5 {[%emt 0:01:36]} 7. Nxg5 {[%emt 0:14:26]} hxg5 {[%emt 0:00:16]} 8. Qg4 {[%emt 0:00:03]} Rh4 $18 {[%emt 0:07:43]} (8... Nh6 $142 9. Qxg5 Qxg5 10. Bxg5 Na6) 9. Qxg5 {[%emt 0:03:15]} Qxg5 {[%emt 0:00:51]} 10. Bxg5 {[%emt 0:00:06]} Rh8 {[%emt 0:06:27]} 11. Bf4 {[%emt 0:01:48]} d6 {[%emt 0:02:34]} 12. e5 {[%emt 0:00:28]} d5 {[%emt 0:01:11]} 13. Nb5 {[%emt 0:00:32]} Kd7 {[%emt 0:01:47]} 14. c4 {[%emt 0:01:12]} a6 {[%emt 0:00:49]} 15. Nc3 {[%emt 0:00:11]} Ne7 {[%emt 0:04:17]} 16. Rac1 {[%emt 0:01:41]} Nbc6 {[%emt 0:01:33]} 17. cxd5 {[%emt 0:04:16]} Nxd4 {[%emt 0:02:40]} 18. dxe6+ {[%emt 0:00:10]} Nxe6 {[%emt 0:02:53]} 19. Bg3 {[%emt 0:00:18]} Rad8 {[%emt 0:04:27]} 20. Rfd1 {[%emt 0:02:20]} Kc8 {[%emt 0:01:40]} 21. f4 {[%emt 0:02:07]} g6 {[%emt 0:11:00]} 22. Bb1 {[%emt 0:05:44]} Rxd1+ {[%emt 0:01:47]} 23. Rxd1 {[%emt 0:00:08]} Rd8 {[%emt 0:00:36]} 24. Rxd8+ {[%emt 0:02:24]} Kxd8 {[%emt 0:01:37]} 25. Kf2 {[%emt 0:02:28]} Ng7 {[%emt 0:01:19]} 26. Ne4 {[%emt 0:03:22]} Bxe4 {[%emt 0:01:10]} 27. Bxe4 {[%emt 0:00:11]} Nh5 {[%emt 0:01:51]} 28. Kf3 {[%emt 0:01:00]} Nxg3 {[%emt 0:01:39]} 29. Kxg3 {[%emt 0:00:06]} Kd7 {[%emt 0:02:20]} 30. Kh4 {[%emt 0:00:32]} Ke6 {[%emt 0:01:33]} 31. Kg5 {[%emt 0:02:38]} c5 {[%emt 0:07:48]} 32. g4 {[%emt 0:00:26]} b5 {[%emt 0:00:39]} 33. Bb7 {[%emt 0:01:16]} a5 {[%emt 0:00:51]} 34. Ba6 {[%emt 0:00:04]} b4 {[%emt 0:00:51]} 35. Bc4+ {[%emt 0:00:08]} Nd5 {[%emt 0:01:29]} 36. Bb3 {[%emt 0:00:43]} a4 {[%emt 0:01:38]} 37. Bc4 {[%emt 0:00:36]} f6+ {[%emt 0:02:21]} 38. exf6 {[%emt 0:00:06]} Kd6 {[%emt 0:01:18]} 39. f7 {[%emt 0:00:41]} a3 {[%emt 0:01:16]} 40. f8=Q+ {[%emt 0:00:35]} Ne7 {[%emt 0:30:21]} 41. Qd8+ {[%emt 0:31:05]} Kc6 {[%emt 0:00:33]} 42. Qxe7 {[%emt 0:00:14]} axb2 {[%emt 0:00:32]} 43. Qe6+ {[%emt 0:00:33]} Kb7 {[%emt 0:00:55]} 44. Bd5+ {[%emt 0:00:36]} Ka7 {[%emt 0:00:32]} 45. Qc6 {[%emt 0:00:16]} b1=Q {[%emt 0:01:15]} 46. Qb7# 1-0